{"text_format":"3","workbook":"xlsx","n_sheets":1,"sheets":["הוצאת ספרים בספריה"],"not_rendered":{"defined_names":4},"read":"whole","date_system":"1900"}

{"sheet":"הוצאת ספרים בספריה","index":0,"n_rows":9,"n_cols":8,"rows_kept":9,"merged":[[0,1,0,4],[0,5,0,6]]}
[null,"גיליון הוצאת ספרים בספריה",{"$nulls":3},"ימים שנותרו עד להחזרה: ",null,10]
["תאריך היעד חלף","תלמיד","הדואר האלקטרוני של איש הקשר","מספר הטלפון של איש הקשר","כותר הספר","תאריך השאלה","תאריך החזרה","ימים"]
[{"$f":"IFERROR(((ספרים[[#This Row],[תאריך השאלה]]+DayAllowance)<TODAY())*(LEN(ספרים[[#This Row],[תאריך החזרה]])=0)*(LEN(ספרים[[#This Row],[תאריך השאלה]])>0),0)","v":0},"מעיין גולד","someone@example.com","03-111-1110","בית קטן בערבה",{"$f":"DATE(YEAR(TODAY()),1,14)","v":"2018-01-14"},{"$f":"DATE(YEAR(TODAY()),1,21)","v":"2018-01-21"},{"$f":"IFERROR(IF(ספרים[[#This Row],[תאריך החזרה]]=\"\",IF(ספרים[[#This Row],[תאריך השאלה]]<>\"\", TODAY()-ספרים[[#This Row],[תאריך השאלה]],\"\"),ספרים[[#This Row],[תאריך החזרה]]-ספרים[[#This Row],[תאריך השאלה]]), \"\")","v":7}]
[{"$f":"IFERROR(((ספרים[[#This Row],[תאריך השאלה]]+DayAllowance)<TODAY())*(LEN(ספרים[[#This Row],[תאריך החזרה]])=0)*(LEN(ספרים[[#This Row],[תאריך השאלה]])>0),0)","v":0},"גיל גבאי","someone@example.com","03-111-1111","חוות הקסמים",{"$f":"DATE(YEAR(TODAY()),2,15)","v":"2018-02-15"},{"$f":"DATE(YEAR(TODAY()),2,18)","v":"2018-02-18"},{"$f":"IFERROR(IF(ספרים[[#This Row],[תאריך החזרה]]=\"\",IF(ספרים[[#This Row],[תאריך השאלה]]<>\"\", TODAY()-ספרים[[#This Row],[תאריך השאלה]],\"\"),ספרים[[#This Row],[תאריך החזרה]]-ספרים[[#This Row],[תאריך השאלה]]), \"\")","v":3}]
[{"$f":"IFERROR(((ספרים[[#This Row],[תאריך השאלה]]+DayAllowance)<TODAY())*(LEN(ספרים[[#This Row],[תאריך החזרה]])=0)*(LEN(ספרים[[#This Row],[תאריך השאלה]])>0),0)","v":0},"נעה הרפז","someone@example.com","03-111-1112","המגדל הפורח באוויר",{"$f":"DATE(YEAR(TODAY()),2,17)","v":"2018-02-17"},{"$f":"DATE(YEAR(TODAY()),2,22)","v":"2018-02-22"},{"$f":"IFERROR(IF(ספרים[[#This Row],[תאריך החזרה]]=\"\",IF(ספרים[[#This Row],[תאריך השאלה]]<>\"\", TODAY()-ספרים[[#This Row],[תאריך השאלה]],\"\"),ספרים[[#This Row],[תאריך החזרה]]-ספרים[[#This Row],[תאריך השאלה]]), \"\")","v":5}]
[{"$f":"IFERROR(((ספרים[[#This Row],[תאריך השאלה]]+DayAllowance)<TODAY())*(LEN(ספרים[[#This Row],[תאריך החזרה]])=0)*(LEN(ספרים[[#This Row],[תאריך השאלה]])>0),0)","v":0},"נעם מעוז","someone@example.com","03-111-1113","תנחש כמה אני אוהב אותך",{"$f":"DATE(YEAR(TODAY()),2,17)","v":"2018-02-17"},{"$f":"DATE(YEAR(TODAY()),2,25)","v":"2018-02-25"},{"$f":"IFERROR(IF(ספרים[[#This Row],[תאריך החזרה]]=\"\",IF(ספרים[[#This Row],[תאריך השאלה]]<>\"\", TODAY()-ספרים[[#This Row],[תאריך השאלה]],\"\"),ספרים[[#This Row],[תאריך החזרה]]-ספרים[[#This Row],[תאריך השאלה]]), \"\")","v":8}]
[{"$f":"IFERROR(((ספרים[[#This Row],[תאריך השאלה]]+DayAllowance)<TODAY())*(LEN(ספרים[[#This Row],[תאריך החזרה]])=0)*(LEN(ספרים[[#This Row],[תאריך השאלה]])>0),0)","v":0},"שיר רוזנשטיין","someone@example.com","03-111-1114","מטילדה",{"$f":"DATE(YEAR(TODAY()),2,18)","v":"2018-02-18"},{"$f":"DATE(YEAR(TODAY()),2,28)","v":"2018-02-28"},{"$f":"IFERROR(IF(ספרים[[#This Row],[תאריך החזרה]]=\"\",IF(ספרים[[#This Row],[תאריך השאלה]]<>\"\", TODAY()-ספרים[[#This Row],[תאריך השאלה]],\"\"),ספרים[[#This Row],[תאריך החזרה]]-ספרים[[#This Row],[תאריך השאלה]]), \"\")","v":10}]
[{"$f":"IFERROR(((ספרים[[#This Row],[תאריך השאלה]]+DayAllowance)<TODAY())*(LEN(ספרים[[#This Row],[תאריך החזרה]])=0)*(LEN(ספרים[[#This Row],[תאריך השאלה]])>0),0)","v":1},"אביגיל גולדשטיין","someone@example.com","03-1111115","דברי ימי נרנייה",{"$f":"DATE(YEAR(TODAY()),1,23)","v":"2018-01-23"},null,{"$f":"IFERROR(IF(ספרים[[#This Row],[תאריך החזרה]]=\"\",IF(ספרים[[#This Row],[תאריך השאלה]]<>\"\", TODAY()-ספרים[[#This Row],[תאריך השאלה]],\"\"),ספרים[[#This Row],[תאריך החזרה]]-ספרים[[#This Row],[תאריך השאלה]]), \"\")","v":163}]
[{"$f":"IFERROR(((ספרים[[#This Row],[תאריך השאלה]]+DayAllowance)<TODAY())*(LEN(ספרים[[#This Row],[תאריך החזרה]])=0)*(LEN(ספרים[[#This Row],[תאריך השאלה]])>0),0)","v":0},"הדס ענבר","someone@example.com","03-111-1116","טריקסי",{"$f":"TODAY()","v":"2018-07-05"},null,{"$f":"IFERROR(IF(ספרים[[#This Row],[תאריך החזרה]]=\"\",IF(ספרים[[#This Row],[תאריך השאלה]]<>\"\", TODAY()-ספרים[[#This Row],[תאריך השאלה]],\"\"),ספרים[[#This Row],[תאריך החזרה]]-ספרים[[#This Row],[תאריך השאלה]]), \"\")","v":0}]